[Event "Czech Championship U20 Open 2023"]
[Site "Jaromerice nad Rokytnou"]
[Date "2023.03.10"]
[Round "1.6"]
[White "Kubiczek, Michal"]
[Black "Frank, Adam"]
[Result "0-1"]
[ECO "A40"]
[WhiteElo "2087"]
[BlackElo "2391"]
[Annotator "TA"]
[PlyCount "120"]
[EventDate "2023.03.10"]
[EventType "tourn"]
[EventCountry "CZE"]
[SourceTitle "playchess.com"]
[Source "ChessBase"]
[SourceQuality "1"]
[TimeControl "40/5400+30:1800+30"]

{[%evp 16,120,0,-10,29,-32,18,26,33,36,73,71,66,68,74,72,144,125,130,124,126,119,115,150,148,151,140,150,133,114,191,134,158,127,239,175,166,176,170,165,122,64,44,52,91,14,131,140,169,78,102,37,56,48,37,-35,-36,-201,-197,-450,-449,-441,-411,-351,-351,-725,-755,-1077,-1049,-1062,-1057,-946,-930,-1166,-1191,-1120,-1553,-1283,-893,-5097,-4233,-29967,-29970,-29966,-29967,-29977,-29978,-29981,-29982,-29982,-29983,-29983,-29983,-29985,-29986,-29987,-29988,-29989,-29988,-29991,-29986,-29987,-29986,-29986,-29987,-29993,-29991]} 1. d4 {[%emt 0:00:06]} g6 {[%emt 0:00:05]} 2. c4 {[%emt 0:00:23]} Bg7 {[%emt 0:00:06]} 3. g3 {[%emt 0:00:15]} d6 {[%emt 0:00:06]} 4. Bg2 {[%emt 0:00:26]} Nf6 {[%emt 0:00:05]} 5. Nc3 {[%emt 0:00:14]} O-O {[%emt 0:00:05]} 6. e3 {[%emt 0:00:23]} c6 {[%emt 0:03:38]} 7. Nge2 {[%emt 0:01:16]} e5 {[%emt 0:00:15]} 8. O-O {[%emt 0:00:39]} Re8 {[%emt 0:00:49]} 9. h3 {[%emt 0:02:44]} h5 {[%emt 0:00:45] E61: King's Indian: Early deviations for White, including Smyslov System.} 10. b4 {[%emt 0:08:26] [#]} (10. e4 $11) 10... Be6 $146 {[%emt 0:10:12]} (10... Nbd7 $15) ({Predecessor:} 10... e4 11. b5 Bf5 12. bxc6 Nxc6 13. Rb1 b6 14. Qa4 Qd7 15. Kh2 Rac8 16. Rb5 Na5 17. c5 dxc5 18. dxc5 Rxc5 19. Rxc5 Qxa4 20. Nxa4 bxc5 21. Nxc5 {1-0 Pena Gomez,M (2408)-Barbero Sendic,A (2370) ESP-chT CECLUB Div1 GpA 2012 (1)}) 11. d5 $11 {[%emt 0:07:41]} cxd5 {[%emt 0:00:04] White has an edge.} 12. cxd5 {[%emt 0:00:09]} Bc8 {[%emt 0:01:42]} 13. e4 {[%emt 0:05:21]} Nbd7 {[%emt 0:01:14]} 14. a4 {[%emt 0:05:09]} a5 {[%emt 0:07:25]} 15. Nb5 {[%emt 0:05:29]} Nb8 {[%emt 0:18:17]} (15... Ra6 $142) 16. Qc2 {[%emt 0:04:47]} Na6 {[%emt 0:00:39] Prevents Nc7} 17. bxa5 {[%emt 0:01:50]} Bf8 {[%emt 0:13:40]} 18. Ba3 {[%emt 0:05:26]} Bd7 {[%emt 0:00:07]} 19. Nxd6 {[%emt 0:07:02]} Bxd6 {[%emt 0:00:06]} 20. Bxd6 {[%emt 0:00:08] Black must now prevent Qb2.} Bxh3 {[%emt 0:00:14]} 21. Bxh3 {[%emt 0:05:45]} Qxd6 {[%emt 0:00:03]} 22. Rfc1 {[%emt 0:02:11]} Re7 {[%emt 0:08:04]} (22... Red8 $16) 23. Rab1 {[%emt 0:03:26]} (23. Nc3 $18) 23... Rc7 $16 {[%emt 0:02:23]} 24. Nc3 {[%emt 0:01:55][%cal Oc3b5]} Ne8 {[%emt 0:02:28]} (24... Qc5 $16) 25. Rb6 {[%emt 0:03:54]} Qa3 {[%emt 0:04:03]} 26. Qb2 $1 {[%emt 0:04:13]} Qxb2 {[%emt 0:00:04]} 27. Rxb2 {[%emt 0:00:02]} Nd6 {[%emt 0:00:22] [#]} 28. Rcc2 {[%emt 0:01:15]} ({White should play} 28. f3 $1 $16) 28... Rc5 {[%emt 0:09:24]} 29. Nb5 {[%emt 0:02:20] Inhibits Nc7.} Nxe4 {[%emt 0:00:41]} 30. Rxc5 {[%emt 0:07:30]} (30. Bg2 $16 Nf6 31. d6) 30... Nexc5 {[%emt 0:03:09]} (30... Naxc5 $11 {remains equal.} 31. Rc2 Nb3) 31. Nd6 {[%emt 0:02:30]} Rb8 {[%emt 0:07:18] [#]} 32. Rb6 {[%emt 0:00:44]} (32. Bf1 $1 $18 {[%cal Rf1a6]}) 32... Nc7 {[%emt 0:02:32]} 33. Bc8 {[%emt 0:03:45]} (33. Nc4 $16) 33... Ne8 $14 {[%emt 0:01:07][%mdl 64] Deflection} 34. Nxe8 {[%emt 0:08:39]} Rxc8 {[%emt 0:00:03][%mdl 4096] Endgame KRN-KRN} 35. Nf6+ {[%emt 0:00:13]} ({Better is} 35. Nd6 $14 Rc7 36. Kg2) 35... Kg7 $15 {[%emt 0:00:09]} 36. d6 $2 {[%emt 0:00:40] This move loses the game for White.} Nxa4 $1 $19 {[%emt 0:02:40]} (36... Kxf6 $2 37. d7+ Rc6 38. d8=Q+ $18) 37. d7 $2 {[%emt 0:01:03]} (37. Nxh5+ gxh5 38. Rxb7) 37... Nxb6 {[%emt 0:00:25]} 38. dxc8=Q {[%emt 0:00:55]} Nxc8 {[%emt 0:00:04] KN-KN} 39. Nd7 {[%emt 0:00:08]} f6 {[%emt 0:01:21][%cal Bf7f6,Bf6f5,Bf5f4][%mdl 32]} 40. Nc5 $2 {[%emt 0:00:46]} (40. Kg2) 40... b6 {[%emt 0:00:10]} 41. axb6 {[%emt 0:30:25]} Nxb6 {[%emt 0:30:07]} 42. Kg2 {[%emt 0:00:44]} f5 {[%emt 0:03:22]} 43. Nd3 {[%emt 0:00:00]} Kf6 {[%emt 0:00:00]} 44. Kf1 {[%emt 0:00:00]} Nd5 {[%emt 0:00:00] Hoping for ...f4.} 45. Kg2 {[%emt 0:00:00]} f4 {[%emt 0:00:00]} 46. Nc5 {[%emt 0:00:00]} Kf5 {[%emt 0:00:00] ...e4 is the strong threat.} 47. Kf3 {[%emt 0:00:00]} g5 {[%emt 0:00:00][%cal Bg6g5,Bg5f4,Bf4f3][%mdl 32]} 48. gxf4 {[%emt 0:00:00]} e4+ {[%emt 0:00:00] Black mates.} 49. Kg2 {[%emt 0:00:00]} gxf4 {[%emt 0:00:00]} 50. Nb3 {[%emt 0:00:00]} Kg4 {[%emt 0:00:00]} 51. Nd2 {[%emt 0:00:00]} f3+ {[%emt 0:00:00]} 52. Kh2 {[%emt 0:00:00]} Nf6 {[%emt 0:00:00]} 53. Kg1 {[%emt 0:00:00]} Kf4 {[%emt 0:00:00]} 54. Nc4 {[%emt 0:00:00]} Ng4 {[%emt 0:00:00]} 55. Nd6 {[%emt 0:00:00]} h4 {[%emt 0:00:00][%cal Bh5h4,Bh4h3][%mdl 32]} 56. Nb5 {[%emt 0:00:00]} h3 {[%emt 0:00:00]} 57. Nd4 {[%emt 0:00:00]} Ke5 {[%emt 0:00:00]} 58. Nc2 {[%emt 0:00:00]} Kd5 {[%emt 0:00:00]} 59. Nb4+ {[%emt 0:00:00]} Kc4 {[%emt 0:00:00]} 60. Na6 {[%emt 0:00:00]} Nxf2 {[%emt 0:00:00][%mdl 64] Promotion.   Weighted Error Value: White=0.54/Black=0.20 (precise)} 0-1

[Event "Czech Championship U20 Open 2023"]
[Site "Jaromerice nad Rokytnou"]
[Date "2023.03.11"]
[Round "2.1"]
[White "Hlavina, Matous"]
[Black "Frank, Adam"]
[Result "0-1"]
[ECO "B70"]
[WhiteElo "2091"]
[BlackElo "2391"]
[Annotator "TA"]
[PlyCount "138"]
[EventDate "2023.03.10"]
[EventType "tourn"]
[EventCountry "CZE"]
[SourceTitle "playchess.com"]
[Source "ChessBase"]
[SourceQuality "1"]
[TimeControl "40/5400+30:1800+30"]

{[%evp 20,138,20,13,22,15,19,31,39,31,33,39,75,70,89,43,88,-50,-53,-57,-46,-51,-55,-75,-66,-89,-81,-98,-91,-130,-101,-109,-95,-92,-50,-49,-25,-26,-25,-25,-25,-25,0,-25,-29,-47,-41,-45,-41,-41,-41,-41,-31,-41,-41,-44,-44,-44,-44,-64,-44,-48,-44,-48,-48,-67,-64,-67,-67,-122,-122,-122,-122,-114,-122,-132,-133,-133,-133,-171,-172,-213,-203,-200,-199,-176,-169,-236,-236,-237,-204,-416,-235,-372,-408,-413,-374,-410,-376,-362,0,-398,0,-350,-320,-506,-548,-567,-562,-501,-461,-517,-435,-29966,-29967,-1896,-1530,-29979,-29980,-1473,-1109]} 1. e4 {[%emt 0:00:55]} c5 {[%emt 0:00:06]} 2. Nf3 {[%emt 0:00:23]} d6 {[%emt 0:00:04]} 3. d4 {[%emt 0:00:04]} cxd4 {[%emt 0:00:04]} 4. Nxd4 {[%emt 0:00:05]} Nf6 {[%emt 0:00:04]} 5. Nc3 {[%emt 0:00:06]} g6 {[%emt 0:00:04]} 6. g3 {[%emt 0:02:53]} Nc6 {[%emt 0:00:10]} 7. Bg2 {[%emt 0:02:06]} Nxd4 {[%emt 0:00:05]} 8. Qxd4 {[%emt 0:00:13]} Bg7 {[%emt 0:00:03]} 9. O-O {[%emt 0:04:01]} O-O {[%emt 0:00:05]} 10. Qd3 {[%emt 0:00:58]} Be6 {[%emt 0:07:07]} 11. Nd5 {[%emt 0:06:21]} Rc8 {[%emt 0:03:53] B70: Sicilian Dragon: 6 g3 and 6 Be2 (without a later Be3).} 12. c3 {[%emt 0:00:40]} Re8 {[%emt 0:01:18]} 13. Be3 {[%emt 0:02:28] [#]} Nd7 $146 {[%emt 0:06:44] White is slightly better.} ({Predecessor:} 13... Qa5 14. a4 Bxd5 15. exd5 Ng4 16. Bf4 Ne5 17. Qe2 Qa6 18. Qc2 Qd3 19. Qb3 Rc7 {1-0 Fercec,N (2410)-Damjanovic,V Pula op 1990 (5)}) 14. f4 {[%emt 0:05:41][%cal Bf2f4,Bf4f5][%mdl 32]} (14. Bxa7 $2 {is the wrong capture.} Bxd5 15. Qxd5 b6 $19) 14... Nc5 {[%emt 0:08:45]} 15. Qd2 {[%emt 0:03:00]} b5 {[%emt 0:03:18]} 16. f5 {[%emt 0:18:48]} Bxd5 {[%emt 0:00:04]} 17. Qxd5 {[%emt 0:01:12]} (17. exd5 $16 Qd7 18. fxg6 hxg6 19. Rf4 (19. Qf2 e5 $14)) 17... Rf8 {[%emt 0:02:26]} 18. Bxc5 {[%emt 0:03:14]} (18. Rf2 $16) 18... Rxc5 $15 {[%emt 0:00:21]} 19. Qb3 {[%emt 0:02:02]} Qb6 $36 {[%emt 0:04:43][%mdl 2048] Black is pushing.} 20. Kh1 {[%emt 0:00:36]} Bf6 {[%emt 0:00:49]} 21. Rad1 {[%emt 0:00:48]} Rb8 {[%emt 0:08:18]} 22. Rd5 {[%emt 0:08:50][%cal Oe4e5]} Kg7 {[%emt 0:00:06]} 23. a3 {[%emt 0:05:46]} a5 {[%emt 0:02:43]} 24. g4 {[%emt 0:07:40]} Rxd5 {[%emt 0:03:15]} 25. Qxd5 {[%emt 0:00:52][%cal Og4g5]} Qe3 {[%emt 0:00:05]} (25... g5 {simplifies} 26. Qd2 h6 27. Ra1 Qc5) 26. Rf3 {[%emt 0:04:54]} Qg5 {[%emt 0:04:54]} 27. fxg6 {[%emt 0:02:08]} hxg6 {[%emt 0:00:04]} (27... Qxg6 {seems wilder.} 28. Qf5 b4 29. cxb4 axb4 30. Rb3 Qh6) 28. Qxg5 {[%emt 0:00:37]} Bxg5 {[%emt 0:00:05][%mdl 4096] Endgame KRB-KRB} 29. Bf1 {[%emt 0:00:58]} e6 {[%emt 0:09:09]} 30. Kg2 {[%emt 0:02:50]} Bf6 {[%emt 0:00:33]} 31. b3 {[%emt 0:00:56]} g5 {[%emt 0:01:18]} 32. Kf2 {[%emt 0:00:29]} Rc8 {[%emt 0:01:33]} 33. Bxb5 {[%emt 0:01:09]} Bxc3 {[%emt 0:00:04]} 34. Bc4 {[%emt 0:00:33]} Bb2 {[%emt 0:09:19]} 35. a4 {[%emt 0:00:36]} Be5 {[%emt 0:00:08]} 36. h3 {[%emt 0:00:28]} Rh8 {[%emt 0:00:45]} 37. Bf1 {[%emt 0:01:01]} Kf8 {[%emt 0:02:52]} 38. Bb5 {[%emt 0:01:59]} Ke7 {[%emt 0:00:10]} 39. Bc4 {[%emt 0:01:17]} Rc8 {[%emt 0:00:23]} 40. Ke2 {[%emt 0:00:27]} Rc7 {[%emt 0:00:06]} 41. Kd1 {[%emt 0:33:03]} Rc5 {[%emt 0:32:04]} 42. Rd3 {[%emt 0:01:13]} Bf4 {[%emt 0:00:25]} 43. Ke2 {[%emt 0:01:44]} Kf6 {[%emt 0:00:18]} 44. Kf3 {[%emt 0:00:58] [#] White is on the road to losing.} ({Better is} 44. Rd1 $15) 44... Ke5 $1 $17 {[%emt 0:00:23]} 45. Rd1 {[%emt 0:00:50]} d5 {[%emt 0:00:29]} 46. exd5 {[%emt 0:00:26]} exd5 {[%emt 0:00:04]} 47. Bb5 {[%emt 0:02:07]} Rc3+ {[%emt 0:01:46]} 48. Rd3 {[%emt 0:00:14]} Rc2 {[%emt 0:00:06]} 49. Be8 {[%emt 0:00:00]} f6 {[%emt 0:00:00]} 50. Bg6 {[%emt 0:00:00][%cal Od3d5]} Rh2 {[%emt 0:00:00]} 51. Bf5 {[%emt 0:00:00]} Rxh3+ {[%emt 0:00:00]} 52. Ke2 {[%emt 0:00:00]} Rh2+ {[%emt 0:00:00]} 53. Kd1 {[%emt 0:00:00] [#]} (53. Kf3 $142) 53... d4 $1 $19 {[%emt 0:00:00]} 54. Rf3 {[%emt 0:00:00]} Kd5 {[%emt 0:00:00]} 55. Rd3 $2 {[%emt 0:00:00]} (55. Ke1) 55... Kc5 {[%emt 0:00:00]} (55... Be3 $142 {Strongly threatening ...Rb2.} 56. Ke1 Rf2) 56. Be6 {[%emt 0:00:00]} (56. Ke1 {is a better defense.}) 56... Be3 {[%emt 0:00:00]} 57. Bf5 {[%emt 0:00:00]} Kb4 {[%emt 0:00:00]} 58. Be6 {[%emt 0:00:00]} Ka3 {[%emt 0:00:00]} 59. Bf5 {[%emt 0:00:00]} Kb4 {[%emt 0:00:00]} 60. Be6 $1 {[%emt 0:00:00]} Kc5 {[%emt 0:00:00]} 61. Bf5 {[%emt 0:00:00]} Kd6 {[%emt 0:00:00]} 62. Be4 {[%emt 0:00:00]} (62. b4 {was forced.} axb4 63. Rb3) 62... Ke5 {[%emt 0:00:00]} 63. Bf5 {[%emt 0:00:00]} Kf4 {[%emt 0:00:00]} 64. Bd7 {[%emt 0:00:00]} Kf3 {[%emt 0:00:00]} 65. Bf5 {[%emt 0:00:00]} Rf2 {[%emt 0:00:00]} 66. Bd7 {[%emt 0:00:00]} (66. Ke1 $19 Rg2 67. Kd1) 66... Ke4 {[%emt 0:02:12]} 67. Bb5 {[%emt 0:00:00]} Rb2 {[%emt 0:00:04] ( -> ...f5)} 68. Ke1 {[%emt 0:00:00]} f5 {[%emt 0:00:15]} 69. gxf5 {[%emt 0:00:00]} Kxf5 {[%emt 0:00:09] Weighted Error Value: White=0.23 (precise) /Black=0.31} 0-1

[Event "Czech Championship U20 Open 2023"]
[Site "Jaromerice nad Rokytnou"]
[Date "2023.03.11"]
[Round "2.2"]
[White "Mica, Marek"]
[Black "Kubiczek, Michal"]
[Result "1-0"]
[ECO "A58"]
[WhiteElo "2248"]
[BlackElo "2087"]
[Annotator "TA"]
[PlyCount "139"]
[EventDate "2023.03.10"]
[EventType "tourn"]
[EventCountry "CZE"]
[SourceTitle "playchess.com"]
[Source "ChessBase"]
[SourceQuality "1"]
[TimeControl "40/5400+30:1800+30"]

{[%evp 9,139,33,45,50,37,50,62,51,38,37,50,35,50,37,34,34,43,27,48,44,51,35,37,33,89,85,91,76,83,88,81,82,156,102,113,86,79,65,102,93,125,137,144,123,126,107,121,114,111,106,70,82,117,65,83,75,143,143,141,136,185,173,168,166,196,205,201,143,163,172,170,137,214,224,228,225,224,216,202,192,203,212,207,196,349,337,245,208,406,406,406,406,406,406,406,406,406,406,420,416,415,416,424,424,450,450,1064,739,729,728,712,701,694,622,29977,420,29982,29983,29983,29984,29984,29985,29985,29986,29986,29987,29987,29988,29988,29989,29989,29990]} 1. d4 {[%emt 0:00:03]} Nf6 {[%emt 0:00:08]} 2. c4 {[%emt 0:00:06][%cal Bc2c4,Bc4b5][%mdl 32]} c5 {[%emt 0:00:04]} 3. d5 {[%emt 0:00:05]} b5 {[%emt 0:00:05]} 4. cxb5 {[%emt 0:00:05]} a6 {[%emt 0:00:04]} 5. bxa6 {[%emt 0:00:06]} g6 {[%emt 0:00:05][%cal Of8g7]} 6. Nc3 {[%emt 0:00:07] A58: Benko/Volga Gambit: Lines with 5 bxa6.} Bg7 {[%emt 0:00:04][%cal Oe8g8]} 7. e4 {[%emt 0:00:09]} O-O {[%emt 0:00:06][%cal Oe7e6]} 8. a7 {[%emt 0:00:05] White is slightly better.} Rxa7 {[%emt 0:00:29]} 9. Nf3 {[%emt 0:00:09]} e6 {[%emt 0:00:30]} 10. Be2 exd5 {[%emt 0:00:16]} 11. exd5 {[%emt 0:00:15]} d6 {[%emt 0:00:19]} 12. O-O {[%emt 0:00:10]} Na6 {[%emt 0:00:43]} 13. Nb5 {[%emt 0:00:15] Repels Nc7} Rd7 {[%emt 0:05:02]} 14. Bc4 {[%emt 0:02:06]} Bb7 {[%emt 0:01:25]} 15. Qb3 {[%emt 0:00:32]} Qa8 {[%emt 0:02:10][%cal Rb7d5]} 16. Rd1 {[%emt 0:00:09]} Nb4 {[%emt 0:04:24]} (16... Nc7 $14) 17. Bf4 $16 {[%emt 0:01:16]} Rfd8 {[%emt 0:06:33][%cal Rb4d5]} 18. Nc3 {[%emt 0:00:31]} Rb8 {[%emt 0:01:54]} 19. a3 {[%emt 0:14:15]} Na6 {[%emt 0:35:38]} 20. Nb5 $36 {[%emt 0:04:16][%mdl 2048] White is in control. White has more active pieces. The black rooks are badly placed.} Ne8 {[%emt 0:07:34] [#]} (20... Rbd8 $142) 21. Rab1 $146 {[%emt 0:03:07]} (21. Ng5 $142 {Hoping for Qh3.} Rbd8 22. Ne4 (22. Qh3 h6 $18)) ({Predecessor:} 21. Qc2 Nac7 22. Nxc7 Nxc7 23. Qd2 Ba6 24. Bxa6 Rxb2 25. Qd3 Qxa6 26. Qxa6 Nxa6 27. Rab1 {0-1 Ruhlmann,H (1816)-Mathieu,P (2240) FRA-chT Top 12 2021 (7.1)}) 21... Nac7 {[%emt 0:02:08]} 22. Nxc7 {[%emt 0:04:26]} Rxc7 {[%emt 0:01:58]} 23. Qe3 {[%emt 0:02:56]} Ba6 {[%emt 0:01:11]} 24. b3 {[%emt 0:05:51]} Rcb7 {[%emt 0:00:29] ...Bxc4 would be deadly.} 25. Nd2 {[%emt 0:04:25]} Bd4 {[%emt 0:03:41]} 26. Qd3 {[%emt 0:04:27]} Rb6 {[%emt 0:01:10]} 27. Be3 {[%emt 0:01:27]} Bxe3 {[%emt 0:04:41]} 28. fxe3 {[%emt 0:06:11]} Nf6 {[%emt 0:02:11] [#]} 29. Bxa6 $1 {[%emt 0:03:23]} Rxa6 {[%emt 0:02:27]} 30. Nc4 {[%emt 0:00:38]} Nd7 {[%emt 0:02:05]} 31. e4 {[%emt 0:01:10]} ({White should try} 31. b4 $16) 31... Qa7 {[%emt 0:04:18]} 32. Kh1 {[%emt 0:01:34]} Ne5 {[%emt 0:01:21]} ({Better is} 32... Re8) 33. Nxe5 {[%emt 0:01:55]} dxe5 {[%emt 0:00:02]} 34. Qc3 {[%emt 0:04:22]} f6 {[%emt 0:03:18]} (34... Qe7 $16 35. a4 Rb4) 35. b4 $18 {[%emt 0:02:55]} cxb4 {[%emt 0:04:24]} 36. axb4 {[%emt 0:00:10] Black must now prevent d6.} ({Resist} 36. Rxb4 $6 Ra8 $16) 36... Qd7 {[%emt 0:00:54] Inhibits d6.} 37. h3 {[%emt 0:02:36]} Rab6 {[%emt 0:01:11]} 38. Rd2 {[%emt 0:02:53]} Qd6 {[%emt 0:00:32][%cal Rb6b4]} 39. Rdb2 {[%emt 0:02:11]} Rb5 {[%emt 0:01:15]} 40. Qc6 {[%emt 0:07:51]} Qxc6 {[%emt 0:00:59]} (40... R5b6 $16 {might work better.} 41. Qc4 Rb5) 41. dxc6 $16 {[%emt 0:31:06][%mdl 4096] Endgame Strongly threatening Rd1. KRR-KRR} Rc8 {[%emt 0:32:06]} 42. Rc2 {[%emt 0:00:55]} Kf7 {[%emt 0:00:00]} 43. g4 {[%emt 0:00:00]} Ke6 {[%emt 0:00:00]} 44. Rc4 {[%emt 0:00:00]} Rc7 {[%emt 0:00:00]} 45. Kg2 {[%emt 0:00:00]} Kd6 {[%emt 0:00:00]} 46. Rd1+ {[%emt 0:00:00]} Ke6 $2 {[%emt 0:00:00]} (46... Ke7) 47. Kf3 {[%emt 0:00:00]} Rb6 {[%emt 0:00:00]} 48. Rdc1 {[%emt 0:00:00]} f5 $2 {[%emt 0:00:00]} (48... Ke7 {was worth a try.} 49. Kf2 Kd6) 49. gxf5+ $18 {[%emt 0:00:00]} gxf5 {[%emt 0:00:00]} 50. exf5+ {[%emt 0:00:00]} Kxf5 {[%emt 0:00:00]} 51. Ke3 {[%emt 0:00:00]} Rb5 {[%emt 0:00:00]} 52. h4 {[%emt 0:00:00][%cal Bh3h4,Bh4h5][%mdl 32]} Rb6 {[%emt 0:00:00]} 53. R1c2 {[%emt 0:00:00]} Rb5 {[%emt 0:00:00]} 54. Rf2+ {[%emt 0:00:00]} Ke6 {[%emt 0:00:00]} 55. Ke4 {[%emt 0:00:00]} Rb6 {[%emt 0:01:03]} 56. Rfc2 {[%emt 0:00:00]} Rb5 {[%emt 0:00:09]} 57. h5 {[%emt 0:00:00]} Kf6 {[%emt 0:01:26]} (57... Rb6 $142 58. Rc1 Rb8) 58. Rd2 {[%emt 0:00:00]} Ke6 {[%emt 0:00:29]} 59. Rd8 {[%emt 0:01:53]} Rb6 {[%emt 0:00:21]} 60. Re8+ {[%emt 0:01:21]} Kd6 {[%emt 0:00:54]} 61. Rxe5 {[%emt 0:11:47] aiming for b5.} Rcxc6 {[%emt 0:00:24]} 62. Rxc6+ {[%emt 0:03:38]} (62. Rec5 $142 Rc8 63. Rxc8 Rb7 64. R8c6+ Ke7 65. Rc7+ Rxc7 66. Rxc7+ Kd6 67. Rc1) 62... Kxc6 {[%emt 0:00:16] KR-KR} (62... Rxc6 $18 63. Rd5+ Ke6) 63. Re6+ {[%emt 0:00:09] White mates.} Kb5 {[%emt 0:00:36]} 64. Rxb6+ {[%emt 0:00:07]} Kxb6 {[%emt 0:00:19] KPP-KP} 65. Kf5 {[%emt 0:00:13]} Kb5 {[%emt 0:00:05]} 66. Kg5 {[%emt 0:00:08]} Kxb4 {[%emt 0:01:07] [#]} 67. Kh6 $1 {[%emt 0:00:05]} Kc5 {[%emt 0:00:04]} 68. Kxh7 {[%emt 0:00:05]} Kd6 {[%emt 0:00:03]} 69. h6 {[%emt 0:00:15]} Ke7 {[%emt 0:00:05]} 70. Kg7 {[%emt 0:00:05] Weighted Error Value: White=0.06 (flawless) /Black=0.20 (precise)} 1-0

[Event "Czech Championship U20 Open 2023"]
[Site "Jaromerice nad Rokytnou"]
[Date "2023.03.11"]
[Round "2.3"]
[White "Gnojek, Petr"]
[Black "Jun, Rudolf"]
[Result "1-0"]
[ECO "E20"]
[WhiteElo "2313"]
[BlackElo "2152"]
[Annotator "TA"]
[PlyCount "73"]
[EventDate "2023.03.10"]
[EventType "tourn"]
[EventCountry "CZE"]
[SourceTitle "playchess.com"]
[Source "ChessBase"]
[SourceQuality "1"]
[TimeControl "40/5400+30:1800+30"]

{[%evp 11,73,-2,10,0,7,0,0,0,24,15,14,0,11,12,7,6,7,0,2,-20,10,0,10,16,19,12,12,14,20,13,15,15,24,0,0,0,0,0,30,44,43,50,44,32,108,107,236,244,293,285,250,234,403,403,394,343,568,559,802,799,3045,3039,2289,1734]} 1. d4 {[%emt 0:00:04]} Nf6 {[%emt 0:00:41]} 2. c4 {[%emt 0:00:13]} e6 {[%emt 0:00:55]} 3. Nc3 {[%emt 0:00:14]} Bb4 {[%emt 0:00:28]} 4. Bd2 {[%emt 0:00:32]} O-O {[%emt 0:01:06]} 5. Nf3 {[%emt 0:00:14]} d5 {[%emt 0:06:57]} 6. e3 {[%emt 0:00:17]} Nbd7 {[%emt 0:05:35]} 7. Rc1 {[%emt 0:03:38]} c6 {[%emt 0:05:42]} 8. Bd3 {[%emt 0:20:00]} Bd6 {[%emt 0:09:12]} 9. O-O {[%emt 0:10:38] The position is equal.} Re8 {[%emt 0:06:36]} 10. Qc2 {[%emt 0:00:51]} h6 {[%emt 0:08:02]} 11. e4 {[%emt 0:12:21]} dxe4 {[%emt 0:01:20]} 12. Nxe4 {[%emt 0:00:05]} Nxe4 {[%emt 0:01:35]} 13. Bxe4 {[%emt 0:00:04]} e5 $1 {[%emt 0:02:51]} 14. Bc3 {[%emt 0:05:53]} exd4 $1 {[%emt 0:02:28]} 15. Bxd4 {[%emt 0:00:07]} Ne5 {[%emt 0:07:35] [#] Hoping for ...Nxf3+.} (15... Nf6 $5 {[%cal Rf6e4]} 16. Bf5 Bxf5 17. Qxf5 Ne4 $11) 16. Rcd1 {[%emt 0:05:11]} Nxf3+ {[%emt 0:01:30]} 17. Bxf3 {[%emt 0:00:04][%cal Od4c5]} Qg5 {[%emt 0:08:56] Repels Bc5} 18. Qc3 {[%emt 0:05:14][%cal Od4g7]} Bc7 {[%emt 0:04:31]} 19. Rfe1 {[%emt 0:05:17]} Bg4 {[%emt 0:06:14]} 20. Bxg4 {[%emt 0:06:36]} Qxg4 {[%emt 0:00:32]} 21. h3 {[%emt 0:00:04]} Qg5 {[%emt 0:04:14]} 22. Rxe8+ {[%emt 0:02:51]} Rxe8 {[%emt 0:00:05]} 23. Bxa7 {[%emt 0:00:40]} b6 {[%emt 0:04:05] And now ...Ra8 would win.} 24. c5 {[%emt 0:00:08]} b5 {[%emt 0:01:22]} (24... Qf4 $5 {[%cal Rf4h2]} 25. g3 Qa4 $11) 25. Bb6 $36 {[%emt 0:02:35][%mdl 2048] White has good play.} Be5 {[%emt 0:03:19]} 26. Qf3 {[%emt 0:00:10]} Qg6 {[%emt 0:01:45]} 27. b3 {[%emt 0:00:44] aiming for a4.} (27. b4 {feels hotter.} Qc2 28. g3 Bc3 29. Rd7) 27... b4 {[%emt 0:00:44]} (27... Qc2 $1 $14) 28. g3 $16 {[%emt 0:00:10]} Bb2 {[%emt 0:05:33] Black cannot hold the game after this.} (28... Qc2 $16 {keeps fighting.}) 29. Kg2 $18 {[%emt 0:01:16]} Re6 {[%emt 0:00:35]} 30. Ba5 {[%emt 0:03:13]} Bc3 {[%emt 0:00:30]} 31. a3 {[%emt 0:00:33][%cal Ba2a3,Ba3b4,Bb4b5][%mdl 32]} Kh7 $2 {[%emt 0:00:31]} (31... Be1 {is a better defense.}) 32. Bxb4 {[%emt 0:00:32]} Bxb4 {[%emt 0:00:23]} 33. axb4 {[%emt 0:00:05]} f5 $2 {[%emt 0:00:37]} (33... Rf6 {was called for.} 34. Qd3 Re6) 34. h4 {[%emt 0:05:16][%cal Bh3h4,Bh4h5][%mdl 32] White is clearly winning.} f4 {[%emt 0:00:24]} 35. h5 {[%emt 0:01:42]} Qe4 {[%emt 0:00:26]} 36. Qxe4+ {[%emt 0:01:37]} Rxe4 {[%emt 0:00:06] [#]} 37. b5 $1 {[%emt 0:00:05] Weighted Error Value: White=0.05 (flawless) /Black=0.30} 1-0